[Event "Paracin Open 2022"]
[Site "Paracin"]
[Date "2022.07.14"]
[Round "7.6"]
[White "Koustav Chatterjee"]
[Black "Ohanyan, Emin"]
[Result "0-1"]
[ECO "A08"]
[WhiteElo "2485"]
[BlackElo "2354"]
[Annotator "ChessBase"]
[PlyCount "118"]
[EventDate "2022.07.08"]
[EventCountry "SRB"]
[SourceTitle "playchess.com"]
[Source "ChessBase"]
[SourceQuality "1"]
[TimeControl "5400+30"]

1. Nf3 {[%emt 1:31:00]} d5 {[%emt 0:00:29]} 2. g3 {[%emt 0:00:00]} c5 {[%emt 0:00:47]} 3. Bg2 {[%emt 0:01:00]} Nf6 {[%emt 0:00:09]} 4. O-O {[%emt 0:00:00]} e6 {[%emt 0:00:03]} 5. b3 {[%emt 0:00:00]} Nc6 {[%emt 0:13:38]} 6. Bb2 {[%emt 0:00:00]} d4 {[%emt 0:05:31]} 7. e3 {[%emt 0:00:00]} e5 {[%emt 0:16:36]} 8. b4 {[%emt 0:00:00]} cxb4 {[%emt 0:06:35]} 9. a3 {[%emt 0:00:00]} bxa3 {[%emt 0:05:49]} 10. Nxa3 {[%emt 0:03:30]} Be7 {[%emt 0:45:53]} 11. exd4 {[%emt 0:00:00]} exd4 {[%emt 0:00:00]} 12. Nb5 {[%emt 0:00:00]} Bg4 {[%emt 0:00:00]} 13. Nbxd4 {[%emt 0:00:00]} Nxd4 {[%emt 0:00:00]} 14. Bxd4 {[%emt 0:02:00]} Bxf3 {[%emt 0:00:00]} 15. Qxf3 {[%emt 0:00:00]} Qxd4 {[%emt 0:00:00]} 16. Qxb7 {[%emt 0:00:00]} Rd8 {[%emt 0:00:00]} 17. Rxa7 {[%emt 0:00:00]} Nd7 {[%emt 0:00:00]} 18. Re1 {[%emt 0:00:00]} Kf8 {[%emt 0:00:00]} 19. Ra8 {[%emt 0:00:29]} g6 {[%emt 0:00:00]} 20. Rxd8+ {[%emt 0:00:26]} Bxd8 {[%emt 0:00:00]} 21. Bd5 {[%emt 0:00:02]} Bb6 {[%emt 0:01:22]} 22. Re2 {[%emt 0:02:24]} Qa1+ {[%emt 0:01:07]} 23. Kg2 {[%emt 0:00:01]} Qa7 {[%emt 0:00:39]} 24. Qc6 {[%emt 0:00:15]} Qc7 {[%emt 0:00:57]} 25. Qa4 {[%emt 0:00:41]} Nf6 {[%emt 0:01:08]} 26. Bf3 {[%emt 0:00:31]} Kg7 {[%emt 0:00:27]} 27. c3 {[%emt 0:00:02]} Rd8 {[%emt 0:01:00]} 28. Qb5 {[%emt 0:00:35]} Ba7 {[%emt 0:01:30]} 29. Qb4 {[%emt 0:01:16]} Qb6 {[%emt 0:00:21]} 30. Qc4 {[%emt 0:00:25]} Re8 {[%emt 0:00:16]} 31. d4 {[%emt 0:00:05]} Rxe2 {[%emt 0:00:03]} 32. Qxe2 {[%emt 0:00:04]} Qc7 {[%emt 0:00:44]} 33. Qd3 {[%emt 0:01:15]} h5 {[%emt 0:00:17]} 34. h3 {[%emt 0:00:30]} Qd6 {[%emt 0:00:42]} 35. Qb5 {[%emt 0:00:28]} Qc7 {[%emt 0:01:23]} 36. Qd3 {[%emt 0:00:27]} Bb6 {[%emt 0:00:19]} 37. Ba8 {[%emt 0:00:41]} Ba5 {[%emt 0:00:29]} 38. c4 {[%emt 0:00:06]} Qd8 {[%emt 0:00:01]} 39. Be4 {[%emt 0:01:02]} Nxe4 {[%emt 0:00:22]} 40. Qxe4 {[%emt 0:00:03]} Bc3 {[%emt 0:00:12]} 41. d5 {[%emt 0:00:01]} Qd6 {[%emt 0:00:20]} 42. Qe3 {[%emt 0:00:24]} Bb4 {[%emt 0:00:19]} 43. Qd4+ {[%emt 0:00:10]} Kg8 {[%emt 0:00:45]} 44. h4 {[%emt 0:00:37]} Bc5 {[%emt 0:00:06]} 45. Qb2 {[%emt 0:00:11]} Qe7 {[%emt 0:01:52]} 46. Qb8+ {[%emt 0:00:02]} Kg7 {[%emt 0:00:04]} 47. Qf4 {[%emt 0:00:06]} Qf6 {[%emt 0:00:11]} 48. Qd2 {[%emt 0:00:13]} Qd4 {[%emt 0:00:10]} 49. Qe2 {[%emt 0:00:17]} Qf6 {[%emt 0:01:13]} 50. Qd2 {[%emt 0:00:09]} Qe5 {[%emt 0:00:11]} 51. Qc2 {[%emt 0:01:27]} Kf6 {[%emt 0:00:16]} 52. Kf1 {[%emt 0:00:39]} Ke7 {[%emt 0:00:54]} 53. Qb1 {[%emt 0:01:33]} Qd4 {[%emt 0:00:11]} 54. Qc2 {[%emt 0:00:58]} Kd6 {[%emt 0:00:10]} 55. Kg2 {[%emt 0:00:52]} Ke5 {[%emt 0:00:33]} 56. Kf1 {[%emt 0:00:29]} Qe4 {[%emt 0:00:59]} 57. Qb2+ {[%emt 0:00:08]} Kf5 {[%emt 0:00:38]} 58. Qc3 {[%emt 0:01:01]} Kg4 {[%emt 0:00:54]} 59. Qf6 {[%emt 0:00:49]} Kh3 {[%emt 0:00:46]} 0-1

[Event "Paracin Open 2022"]
[Site "Paracin"]
[Date "2022.07.14"]
[Round "7.7"]
[White "Harshavardhan G B"]
[Black "Suleymenov, Alisher"]
[Result "0-1"]
[ECO "D85"]
[WhiteElo "2397"]
[BlackElo "2467"]
[Annotator "ChessBase"]
[PlyCount "106"]
[EventDate "2022.07.08"]
[EventCountry "SRB"]
[SourceTitle "playchess.com"]
[Source "ChessBase"]
[SourceQuality "1"]
[TimeControl "5400+30"]

1. d4 {[%emt 0:00:34]} Nf6 {[%emt 0:00:07]} 2. c4 {[%emt 0:00:44]} g6 {[%emt 0:00:07]} 3. Nc3 {[%emt 0:00:27]} d5 {[%emt 0:00:06]} 4. cxd5 {[%emt 0:00:05]} Nxd5 {[%emt 0:00:04]} 5. Bd2 {[%emt 0:00:09]} Bg7 {[%emt 0:00:05]} 6. e4 {[%emt 0:00:10]} Nxc3 {[%emt 0:00:04]} 7. Bxc3 {[%emt 0:00:05]} O-O {[%emt 0:00:04]} 8. Qd2 {[%emt 0:00:11]} Nd7 {[%emt 0:03:58]} 9. Nf3 {[%emt 0:03:08]} b6 {[%emt 0:02:32]} 10. Bd3 {[%emt 0:01:47]} e6 {[%emt 0:00:06]} 11. h4 {[%emt 0:02:41]} c5 {[%emt 0:19:18]} 12. Bc2 {[%emt 0:01:39]} Bb7 {[%emt 0:12:32]} 13. O-O-O {[%emt 0:00:48]} Nf6 {[%emt 0:16:48]} 14. dxc5 {[%emt 0:04:49]} Qxd2+ {[%emt 0:02:37]} 15. Nxd2 {[%emt 0:00:32]} Ng4 {[%emt 0:00:13]} 16. Bxg7 {[%emt 0:01:00]} Kxg7 {[%emt 0:00:02]} 17. Rde1 {[%emt 0:05:52]} Nxf2 {[%emt 0:00:06]} 18. Rhf1 {[%emt 0:00:06]} Ng4 {[%emt 0:00:03]} 19. cxb6 {[%emt 0:01:20]} axb6 {[%emt 0:00:17]} 20. Kb1 {[%emt 0:00:14]} Rfd8 {[%emt 0:03:40]} 21. Nb3 {[%emt 0:17:19]} h5 {[%emt 0:02:24]} 22. Rf3 {[%emt 0:00:45]} Ne5 {[%emt 0:04:34]} 23. Rc3 {[%emt 0:00:27]} Rd7 {[%emt 0:00:08]} 24. g3 {[%emt 0:02:46]} Rad8 {[%emt 0:00:13]} 25. Nc1 {[%emt 0:06:10]} Ba6 {[%emt 0:32:52]} 26. a4 {[%emt 0:08:00]} Rd2 {[%emt 0:00:30]} 27. Rg1 {[%emt 0:09:01]} Bb7 {[%emt 0:00:00]} 28. Ka2 {[%emt 0:15:16]} Nc6 {[%emt 0:00:00]} 29. Ka3 {[%emt 0:02:27]} b5 {[%emt 0:01:30]} 30. axb5 {[%emt 0:03:15]} Ra8+ {[%emt 0:00:00]} 31. Ba4 {[%emt 0:00:07]} Nd4 {[%emt 0:00:00]} 32. Rd3 {[%emt 0:14:36]} Nxb5+ {[%emt 0:00:00]} 33. Kb4 {[%emt 0:00:30]} Rxb2+ {[%emt 0:00:00]} 34. Nb3 {[%emt 0:00:00]} Bxe4 {[%emt 0:00:00]} 35. Re3 {[%emt 0:00:00]} Nd6 {[%emt 0:00:00]} 36. Ra1 {[%emt 0:00:19]} Bd5 {[%emt 0:00:00]} 37. Rc3 {[%emt 0:00:22]} Rb8+ {[%emt 0:00:52]} 38. Ka3 {[%emt 0:00:16]} R2xb3+ {[%emt 0:00:19]} 39. Rxb3 {[%emt 0:00:17]} Nc4+ {[%emt 0:00:23]} 40. Ka2 {[%emt 0:00:09]} Nd2 {[%emt 0:00:14]} 41. Ka3 {[%emt 0:00:37]} Bxb3 {[%emt 0:00:45]} 42. Bxb3 {[%emt 0:00:23]} Rxb3+ {[%emt 0:00:09]} 43. Ka2 {[%emt 0:00:08]} Rxg3 {[%emt 0:00:18]} 44. Rd1 {[%emt 0:00:06]} Rg2 {[%emt 0:00:29]} 45. Ka1 {[%emt 0:00:06]} e5 {[%emt 0:00:36]} 46. Re1 {[%emt 0:00:08]} e4 {[%emt 0:00:23]} 47. Re3 {[%emt 0:00:06]} f5 {[%emt 0:00:28]} 48. Rc3 {[%emt 0:00:07]} f4 {[%emt 0:00:15]} 49. Rc7+ {[%emt 0:00:17]} Kh6 {[%emt 0:00:10]} 50. Kb2 {[%emt 0:00:16]} f3 {[%emt 0:00:12]} 51. Rf7 {[%emt 0:00:07]} f2 {[%emt 0:00:13]} 52. Kc3 {[%emt 0:00:06]} f1=Q {[%emt 0:00:20]} 53. Rxf1 {[%emt 0:00:07]} Nxf1 {[%emt 0:00:02]} 0-1

[Event "Paracin Open 2022"]
[Site "Paracin"]
[Date "2022.07.14"]
[Round "7.8"]
[White "Erdogmus, Yagiz Kaan"]
[Black "Nitish Belurkar"]
[Result "0-1"]
[ECO "C02"]
[WhiteElo "2373"]
[BlackElo "2460"]
[Annotator "ChessBase"]
[PlyCount "138"]
[EventDate "2022.07.08"]
[EventCountry "SRB"]
[SourceTitle "playchess.com"]
[Source "ChessBase"]
[SourceQuality "1"]
[TimeControl "5400+30"]

1. e4 {[%emt 0:00:05]} e6 {[%emt 0:00:51]} 2. d4 {[%emt 0:00:06]} d5 {[%emt 0:00:15]} 3. e5 {[%emt 0:00:07]} c5 {[%emt 0:00:11]} 4. c3 {[%emt 0:00:04]} Nc6 {[%emt 0:00:04]} 5. Nf3 {[%emt 0:00:08]} Bd7 {[%emt 0:00:17]} 6. Be2 {[%emt 0:00:45]} Nge7 {[%emt 0:01:16]} 7. O-O {[%emt 0:00:55]} Ng6 {[%emt 0:02:00]} 8. g3 {[%emt 0:02:02]} Be7 {[%emt 0:00:06]} 9. h4 {[%emt 0:00:19]} cxd4 {[%emt 0:00:05]} 10. cxd4 {[%emt 0:00:42]} O-O {[%emt 0:00:07]} 11. h5 {[%emt 0:00:51]} Nh8 {[%emt 0:00:02]} 12. Nc3 {[%emt 0:25:02]} f6 {[%emt 0:07:48]} 13. exf6 {[%emt 0:24:58]} Bxf6 {[%emt 0:00:13]} 14. Be3 {[%emt 0:11:07]} Nf7 {[%emt 0:05:43]} 15. Bd3 {[%emt 0:05:01]} Nd6 {[%emt 0:14:00]} 16. Bb1 {[%emt 0:12:28]} Be8 {[%emt 0:17:18]} 17. Qd3 {[%emt 0:04:48]} g6 {[%emt 0:00:22]} 18. hxg6 {[%emt 0:02:36]} Bxg6 {[%emt 0:00:46]} 19. Qd2 {[%emt 0:05:34]} Bh5 {[%emt 0:09:17]} 20. Qd3 {[%emt 0:02:16]} Qe7 {[%emt 0:01:10]} 21. Bf4 {[%emt 0:00:31]} Nf5 {[%emt 0:04:09]} 22. Re1 {[%emt 0:00:31]} Rad8 {[%emt 0:02:52]} 23. Nb5 {[%emt 0:00:30]} a6 {[%emt 0:05:16]} 24. Nc7 {[%emt 0:00:15]} Nfxd4 {[%emt 0:02:36]} 25. Nxd4 {[%emt 0:00:34]} Nxd4 {[%emt 0:00:06]} 26. Rxe6 {[%emt 0:00:37]} Nxe6 {[%emt 0:02:06]} 27. Nxe6 {[%emt 0:00:03]} Bxb2 {[%emt 0:06:04]} 28. Nxf8 {[%emt 0:00:53]} Kxf8 {[%emt 0:02:44]} 29. Qf5+ {[%emt 0:00:34]} Qf7 {[%emt 0:00:01]} 30. Qg5 {[%emt 0:00:31]} Bf6 {[%emt 0:00:19]} 31. Qh6+ {[%emt 0:00:26]} Ke8 {[%emt 0:00:01]} 32. Bg5 {[%emt 0:00:38]} Bxa1 {[%emt 0:00:25]} 33. Bxd8 {[%emt 0:00:29]} Kxd8 {[%emt 0:00:20]} 34. Bxh7 {[%emt 0:00:21]} Bd4 {[%emt 0:04:32]} 35. Qg5+ {[%emt 0:00:06]} Bf6 {[%emt 0:00:09]} 36. Qf4 {[%emt 0:00:41]} Qe6 {[%emt 0:07:54]} 37. Qb8+ {[%emt 0:00:24]} Ke7 {[%emt 0:00:01]} 38. Qxb7+ {[%emt 0:00:33]} Kf8 {[%emt 0:00:01]} 39. Bd3 {[%emt 0:00:53]} Bf3 {[%emt 0:05:06]} 40. Qb8+ {[%emt 0:00:29]} Kf7 {[%emt 0:00:25]} 41. Qc7+ {[%emt 0:00:33]} Be7 {[%emt 0:01:29]} 42. Qf4+ {[%emt 0:00:30]} Qf6 {[%emt 0:00:05]} 43. Qe3 {[%emt 0:00:29]} a5 {[%emt 0:00:21]} 44. Bf1 {[%emt 0:00:28]} Be4 {[%emt 0:00:10]} 45. Be2 {[%emt 0:00:34]} Qa1+ {[%emt 0:00:26]} 46. Bf1 {[%emt 0:00:05]} Qd1 {[%emt 0:01:03]} 47. Qf4+ {[%emt 0:00:36]} Bf6 {[%emt 0:00:09]} 48. Qc7+ {[%emt 0:00:08]} Kg6 {[%emt 0:00:07]} 49. Qc8 {[%emt 0:01:07]} Qf3 {[%emt 0:00:21]} 50. Qh3 {[%emt 0:00:31]} Bd4 {[%emt 0:00:34]} 51. Qe6+ {[%emt 0:00:04]} Bf6 {[%emt 0:00:15]} 52. Qh3 {[%emt 0:00:25]} Bf5 {[%emt 0:01:06]} 53. Qh2 {[%emt 0:00:44]} Bd4 {[%emt 0:00:01]} 54. Qg2 {[%emt 0:00:48]} Be4 {[%emt 0:00:13]} 55. Qxf3 {[%emt 0:00:30]} Bxf3 {[%emt 0:00:01]} 56. Bg2 {[%emt 0:00:15]} Be4 {[%emt 0:00:49]} 57. Kf1 {[%emt 0:00:27]} Kf6 {[%emt 0:00:30]} 58. f4 {[%emt 0:00:47]} Bd3+ {[%emt 0:00:52]} 59. Ke1 {[%emt 0:00:01]} Bc4 {[%emt 0:00:01]} 60. a4 {[%emt 0:00:22]} Bc3+ {[%emt 0:00:17]} 61. Kd1 {[%emt 0:00:11]} d4 {[%emt 0:00:07]} 62. Kc2 {[%emt 0:00:23]} Be1 {[%emt 0:00:02]} 63. g4 {[%emt 0:00:51]} d3+ {[%emt 0:00:01]} 64. Kd1 {[%emt 0:00:01]} Bc3 {[%emt 0:00:18]} 65. g5+ {[%emt 0:00:26]} Kf5 {[%emt 0:00:04]} 66. Kc1 {[%emt 0:01:18]} Kxf4 {[%emt 0:00:13]} 67. g6 {[%emt 0:00:12]} Bb3 {[%emt 0:00:03]} 68. Kb1 {[%emt 0:00:21]} d2 {[%emt 0:00:05]} 69. Bf3 {[%emt 0:00:06]} Kxf3 {[%emt 0:00:05]} 0-1

[Event "Paracin Open 2022"]
[Site "Paracin"]
[Date "2022.07.14"]
[Round "7.9"]
[White "Han, Yichen"]
[Black "Agmanov, Zhandos"]
[Result "1-0"]
[ECO "D32"]
[WhiteElo "2286"]
[BlackElo "2459"]
[Annotator "ChessBase"]
[PlyCount "105"]
[EventDate "2022.07.08"]
[EventCountry "SRB"]
[SourceTitle "playchess.com"]
[Source "ChessBase"]
[SourceQuality "1"]
[TimeControl "5400+30"]

1. d4 {[%emt 0:00:31]} d5 {[%emt 0:00:25]} 2. c4 {[%emt 0:00:09]} e6 {[%emt 0:00:04]} 3. Nc3 {[%emt 0:00:31]} c5 {[%emt 0:00:04]} 4. cxd5 {[%emt 0:01:33]} exd5 {[%emt 0:00:27]} 5. e4 {[%emt 0:02:33]} dxe4 {[%emt 0:11:33]} 6. Bb5+ {[%emt 0:00:45]} Bd7 {[%emt 0:03:24]} 7. Nge2 {[%emt 0:01:12]} Nf6 {[%emt 0:07:41]} 8. O-O {[%emt 0:07:54]} cxd4 {[%emt 0:10:28]} 9. Nxd4 {[%emt 0:08:40]} Be7 {[%emt 0:04:09]} 10. Nf5 {[%emt 0:08:23]} O-O {[%emt 0:01:08]} 11. Bxd7 {[%emt 0:02:46]} Nbxd7 {[%emt 0:00:10]} 12. Bg5 {[%emt 0:06:02]} Re8 {[%emt 0:02:21]} 13. Qa4 {[%emt 0:11:32]} Nc5 {[%emt 0:12:49]} 14. Qc2 {[%emt 0:02:03]} Bf8 {[%emt 0:03:21]} 15. Ng3 {[%emt 0:15:03]} Rc8 {[%emt 0:06:03]} 16. Rad1 {[%emt 0:06:28]} Qb6 {[%emt 0:00:22]} 17. Qd2 {[%emt 0:00:54]} Ng4 {[%emt 0:10:54]} 18. Qf4 {[%emt 0:05:04]} Ne5 {[%emt 0:00:23]} 19. Nd5 {[%emt 0:02:48]} Qg6 {[%emt 0:02:11]} 20. Qh4 {[%emt 0:03:27]} h6 {[%emt 0:07:37]} 21. Be7 {[%emt 0:00:47]} Ned3 {[%emt 0:02:39]} 22. b4 {[%emt 0:08:33]} Ne6 {[%emt 0:11:08]} 23. Bxf8 {[%emt 0:01:04]} Kxf8 {[%emt 0:00:10]} 24. Qxe4 {[%emt 0:00:57]} Qxe4 {[%emt 0:00:17]} 25. Nxe4 {[%emt 0:00:02]} Nb2 {[%emt 0:00:10]} 26. Rc1 {[%emt 0:01:27]} Red8 {[%emt 0:00:04]} 27. Ne3 {[%emt 0:01:09]} Nd3 {[%emt 0:01:00]} 28. Rxc8 {[%emt 0:00:44]} Rxc8 {[%emt 0:00:01]} 29. a3 {[%emt 0:00:34]} b6 {[%emt 0:01:22]} 30. Rd1 {[%emt 0:00:51]} Nb2 {[%emt 0:00:14]} 31. Rb1 {[%emt 0:00:27]} Na4 {[%emt 0:00:08]} 32. Kf1 {[%emt 0:00:43]} Nf4 {[%emt 0:00:39]} 33. g3 {[%emt 0:00:37]} Nd3 {[%emt 0:00:06]} 34. Ke2 {[%emt 0:00:35]} Ndb2 {[%emt 0:03:58]} 35. Re1 {[%emt 0:00:34]} Re8 {[%emt 0:00:00]} 36. Nd2 {[%emt 0:00:34]} Nc3+ {[%emt 0:00:00]} 37. Kf1 {[%emt 0:00:19]} Nd3 {[%emt 0:00:00]} 38. Ra1 {[%emt 0:00:07]} b5 {[%emt 0:00:00]} 39. Kg2 {[%emt 0:00:47]} Re6 {[%emt 0:00:00]} 40. Rf1 {[%emt 0:00:23]} Ra6 {[%emt 0:00:00]} 41. Nc2 {[%emt 0:00:20]} Re6 {[%emt 0:01:21]} 42. Nd4 {[%emt 0:00:41]} Rd6 {[%emt 0:00:33]} 43. N2b3 {[%emt 0:00:46]} g5 {[%emt 0:00:18]} 44. h3 {[%emt 0:00:22]} Ra6 {[%emt 0:00:44]} 45. Ra1 {[%emt 0:00:35]} Rd6 {[%emt 0:00:57]} 46. Rf1 {[%emt 0:00:22]} Kg8 {[%emt 0:00:19]} 47. Nf5 {[%emt 0:00:37]} Ra6 {[%emt 0:00:31]} 48. Nc5 {[%emt 0:00:33]} Nxc5 {[%emt 0:01:23]} 49. bxc5 {[%emt 0:00:01]} Kf8 {[%emt 0:00:24]} 50. Rc1 {[%emt 0:00:40]} Rxa3 {[%emt 0:00:12]} 51. c6 {[%emt 0:00:19]} Ke8 {[%emt 0:00:04]} 52. c7 {[%emt 0:00:12]} Kd7 {[%emt 0:00:01]} 53. Nd6 {[%emt 0:00:07]} 1-0

[Event "Paracin Open 2022"]
[Site "Paracin"]
[Date "2022.07.14"]
[Round "7.10"]
[White "Nogerbek, Kazybek"]
[Black "Srihari L R"]
[Result "1/2-1/2"]
[ECO "A88"]
[WhiteElo "2437"]
[BlackElo "2431"]
[Annotator "ChessBase"]
[PlyCount "50"]
[EventDate "2022.07.08"]
[EventCountry "SRB"]
[SourceTitle "playchess.com"]
[Source "ChessBase"]
[SourceQuality "1"]
[TimeControl "5400+30"]

1. Nf3 {[%emt 0:00:07]} f5 {[%emt 0:00:28]} 2. g3 {[%emt 0:00:52]} Nf6 {[%emt 0:00:13]} 3. Bg2 {[%emt 0:00:08]} g6 {[%emt 0:00:29]} 4. O-O {[%emt 0:01:37]} Bg7 {[%emt 0:00:07]} 5. d4 {[%emt 0:00:22]} O-O {[%emt 0:00:14]} 6. c4 {[%emt 0:00:07]} d6 {[%emt 0:00:06]} 7. Nc3 {[%emt 0:00:07]} c6 {[%emt 0:00:21]} 8. d5 {[%emt 0:00:45]} e5 {[%emt 0:00:57]} 9. dxe6 {[%emt 0:00:08]} Bxe6 {[%emt 0:00:07]} 10. b3 {[%emt 0:00:07]} Na6 {[%emt 0:00:41]} 11. Bb2 {[%emt 0:01:21]} Qe7 {[%emt 0:06:08]} 12. Qd2 {[%emt 0:02:51]} Rad8 {[%emt 0:08:15]} 13. Rad1 {[%emt 0:00:42]} Rfe8 {[%emt 0:01:24]} 14. Rfe1 {[%emt 0:02:13]} d5 {[%emt 0:09:24]} 15. cxd5 {[%emt 0:00:58]} Nxd5 {[%emt 0:01:09]} 16. Nxd5 {[%emt 0:02:57]} Bxd5 {[%emt 0:01:23]} 17. Qc1 {[%emt 0:05:14]} Bxb2 {[%emt 0:13:57]} 18. Qxb2 {[%emt 0:00:12]} Nc5 {[%emt 0:01:30]} 19. Qc2 {[%emt 0:03:09]} Ne4 {[%emt 0:04:20]} 20. Nd2 {[%emt 0:02:13]} Nf6 {[%emt 0:14:41]} 21. e3 {[%emt 0:07:53]} Bxg2 {[%emt 0:03:17]} 22. Kxg2 {[%emt 0:00:11]} Rd5 {[%emt 0:00:20]} 23. Nf3 {[%emt 0:02:28]} Red8 {[%emt 0:02:40]} 24. Rxd5 {[%emt 0:07:41]} Rxd5 {[%emt 0:00:16]} 25. Nd2 {[%emt 0:00:37]} Ne4 {[%emt 0:09:13]} 1/2-1/2

[Event "Paracin Open 2022"]
[Site "Paracin"]
[Date "2022.07.14"]
[Round "7.11"]
[White "Petrov, Nikita"]
[Black "Anuj Shrivatri"]
[Result "1/2-1/2"]
[ECO "E48"]
[WhiteElo "2558"]
[BlackElo "2383"]
[Annotator "ChessBase"]
[PlyCount "73"]
[EventDate "2022.07.08"]
[EventCountry "SRB"]
[SourceTitle "playchess.com"]
[Source "ChessBase"]
[SourceQuality "1"]
[TimeControl "5400+30"]

1. d4 {[%emt 0:00:04]} Nf6 {[%emt 0:06:22]} 2. c4 {[%emt 0:00:09]} e6 {[%emt 0:00:03]} 3. Nc3 {[%emt 0:00:58]} Bb4 {[%emt 0:03:59]} 4. e3 {[%emt 0:00:23]} O-O {[%emt 0:00:08]} 5. Bd3 {[%emt 0:00:14]} d5 {[%emt 0:00:10]} 6. cxd5 {[%emt 0:00:47]} exd5 {[%emt 0:00:57]} 7. a3 {[%emt 0:00:08]} Bd6 {[%emt 0:00:06]} 8. Qc2 {[%emt 0:00:20]} c6 {[%emt 0:05:40]} 9. Nge2 {[%emt 0:00:43]} Re8 {[%emt 0:01:18]} 10. Bd2 {[%emt 0:00:11]} b6 {[%emt 0:04:52]} 11. f3 {[%emt 0:01:57]} c5 {[%emt 1:12:25]} 12. g4 {[%emt 0:00:37]} c4 {[%emt 0:00:00]} 13. Bf5 {[%emt 0:00:09]} Bxf5 {[%emt 0:00:00]} 14. Qxf5 {[%emt 0:00:44]} g6 {[%emt 0:00:00]} 15. Qg5 {[%emt 0:00:54]} Nc6 {[%emt 0:00:00]} 16. h4 {[%emt 0:23:52]} Bf8 {[%emt 0:00:00]} 17. h5 {[%emt 0:07:21]} b5 {[%emt 0:00:00]} 18. hxg6 {[%emt 0:06:48]} fxg6 {[%emt 0:00:00]} 19. Kf1 {[%emt 0:06:05]} b4 {[%emt 0:00:00]} 20. axb4 {[%emt 0:01:28]} Nxb4 {[%emt 0:00:00]} 21. Nf4 {[%emt 0:02:33]} Qe7 {[%emt 0:00:00]} 22. Ra5 {[%emt 0:05:44]} Qf7 {[%emt 0:00:00]} 23. Kg2 {[%emt 0:05:46]} Rab8 {[%emt 0:00:00]} 24. Bc1 {[%emt 0:00:17]} Rbd8 {[%emt 0:00:00]} 25. Qh4 {[%emt 0:02:24]} Re7 {[%emt 0:00:00]} 26. Rb5 {[%emt 0:07:06]} Red7 {[%emt 0:00:00]} 27. Bd2 {[%emt 0:00:51]} Ne8 {[%emt 0:01:35]} 28. Nce2 {[%emt 0:07:53]} Nc6 {[%emt 0:02:19]} 29. Ra1 {[%emt 0:06:02]} Rb7 {[%emt 0:02:19]} 30. Rxb7 {[%emt 0:00:22]} Qxb7 {[%emt 0:00:06]} 31. Bc3 {[%emt 0:00:13]} Rd7 {[%emt 0:00:36]} 32. Rh1 {[%emt 0:00:54]} Rd6 {[%emt 0:00:18]} 33. e4 {[%emt 0:02:17]} dxe4 {[%emt 0:00:19]} 34. fxe4 {[%emt 0:00:50]} Nf6 {[%emt 0:02:09]} 35. d5 {[%emt 0:03:16]} Nxe4 {[%emt 0:00:05]} 36. dxc6 {[%emt 0:00:53]} Rxc6 {[%emt 0:02:44]} 37. g5 {[%emt 0:07:47]} 1/2-1/2

[Event "Paracin Open 2022"]
[Site "Paracin"]
[Date "2022.07.14"]
[Round "7.12"]
[White "Zanan, Evgeny"]
[Black "Kushagra Mohan"]
[Result "1/2-1/2"]
[ECO "D85"]
[WhiteElo "2521"]
[BlackElo "2359"]
[Annotator "ChessBase"]
[PlyCount "63"]
[EventDate "2022.07.08"]
[EventCountry "SRB"]
[SourceTitle "playchess.com"]
[Source "ChessBase"]
[SourceQuality "1"]
[TimeControl "5400+30"]

1. d4 {[%emt 0:02:13]} Nf6 {[%emt 0:00:04]} 2. c4 {[%emt 0:00:10]} g6 {[%emt 0:00:03]} 3. Nc3 {[%emt 0:00:05]} d5 {[%emt 0:00:03]} 4. cxd5 {[%emt 0:00:14]} Nxd5 {[%emt 0:00:04]} 5. e4 {[%emt 0:00:05]} Nxc3 {[%emt 0:00:02]} 6. bxc3 {[%emt 0:00:05]} Bg7 {[%emt 0:00:03]} 7. Be3 {[%emt 0:00:08]} c5 {[%emt 0:00:03]} 8. Qd2 {[%emt 0:00:21]} Qa5 {[%emt 0:00:14]} 9. Rc1 {[%emt 0:00:05]} cxd4 {[%emt 0:00:25]} 10. cxd4 {[%emt 0:00:05]} Qxd2+ {[%emt 0:00:02]} 11. Bxd2 {[%emt 0:00:07]} O-O {[%emt 0:00:24]} 12. Nf3 {[%emt 0:06:09]} Bg4 {[%emt 0:00:27]} 13. Be3 {[%emt 0:08:15]} Nc6 {[%emt 0:00:15]} 14. d5 {[%emt 0:00:30]} Bxf3 {[%emt 0:00:05]} 15. gxf3 {[%emt 0:00:05]} Nd4 {[%emt 0:00:05]} 16. Bh3 {[%emt 0:00:04]} f5 {[%emt 0:06:28]} 17. Kf1 {[%emt 0:11:17]} Nxf3 {[%emt 0:08:16]} 18. exf5 {[%emt 0:01:57]} gxf5 {[%emt 0:03:44]} 19. Rc7 {[%emt 0:05:57]} f4 {[%emt 0:05:59]} 20. Bc5 {[%emt 0:08:01]} Ng5 {[%emt 0:03:16]} 21. Bg4 {[%emt 0:14:24]} f3 {[%emt 0:24:26]} 22. Be3 {[%emt 0:16:05]} h5 {[%emt 0:09:08]} 23. Bd7 {[%emt 0:07:09]} Be5 {[%emt 0:03:18]} 24. Rc4 {[%emt 0:04:21]} Rad8 {[%emt 0:05:23]} 25. Rg1 {[%emt 0:07:58]} Rxd7 {[%emt 0:01:03]} 26. Rxg5+ {[%emt 0:00:01]} Bg7 {[%emt 0:00:07]} 27. Bd4 {[%emt 0:02:57]} Rf7 {[%emt 0:00:30]} 28. h4 {[%emt 0:00:10]} Kh7 {[%emt 0:04:41]} 29. Rxh5+ {[%emt 0:01:18]} Kg6 {[%emt 0:00:08]} 30. Rg5+ {[%emt 0:00:04]} Kh7 {[%emt 0:00:05]} 31. Rh5+ {[%emt 0:03:35]} Kg6 {[%emt 0:00:04]} 32. Rg5+ {[%emt 0:00:04]} 1/2-1/2

[Event "Paracin Open 2022"]
[Site "Paracin"]
[Date "2022.07.14"]
[Round "7.13"]
[White "Djordjevic, Vuk"]
[Black "Santiago, Yago De Moura"]
[Result "1-0"]
[ECO "A45"]
[WhiteElo "2382"]
[BlackElo "2513"]
[Annotator "ChessBase"]
[PlyCount "45"]
[EventDate "2022.07.08"]
[EventCountry "SRB"]
[SourceTitle "playchess.com"]
[Source "ChessBase"]
[SourceQuality "1"]
[TimeControl "5400+30"]

1. d4 {[%emt 0:03:42]} Nf6 {[%emt 0:00:17]} 2. Bg5 {[%emt 0:02:55]} c5 {[%emt 0:00:16]} 3. Bxf6 {[%emt 0:00:39]} gxf6 {[%emt 0:00:10]} 4. d5 {[%emt 0:00:54]} Qb6 {[%emt 0:00:53]} 5. Qc1 {[%emt 0:00:13]} f5 {[%emt 0:00:30]} 6. c4 {[%emt 0:00:39]} Bg7 {[%emt 0:00:20]} 7. Nc3 {[%emt 0:00:31]} d6 {[%emt 0:00:16]} 8. e3 {[%emt 0:03:34]} Nd7 {[%emt 0:04:26]} 9. Qc2 {[%emt 0:00:49]} Ne5 {[%emt 0:00:13]} 10. Be2 {[%emt 0:03:19]} Bd7 {[%emt 0:04:17]} 11. Nh3 {[%emt 0:03:19]} h5 {[%emt 0:00:36]} 12. Nf4 {[%emt 0:02:35]} h4 {[%emt 0:01:24]} 13. O-O {[%emt 0:05:18]} O-O-O {[%emt 0:02:36]} 14. Rab1 {[%emt 0:04:07]} Kb8 {[%emt 0:06:25]} 15. Rfc1 {[%emt 0:15:42]} Ng6 {[%emt 0:17:24]} 16. Nd3 {[%emt 0:09:38]} f4 {[%emt 0:05:04]} 17. b4 {[%emt 0:12:46]} Qc7 {[%emt 0:19:55]} 18. bxc5 {[%emt 0:04:12]} dxc5 {[%emt 0:01:19]} 19. Ne4 {[%emt 0:10:20]} fxe3 {[%emt 0:06:40]} 20. Ndxc5 {[%emt 0:05:59]} exf2+ {[%emt 0:00:45]} 21. Kh1 {[%emt 0:02:31]} Qxh2+ {[%emt 0:00:52]} 22. Kxh2 {[%emt 0:00:12]} Be5+ {[%emt 0:00:05]} 23. Kh1 {[%emt 0:01:12]} 1-0